[Event "Titled Tuesday Blitz February 07 Early 2023"]
[White "Belov, Alexei"]
[Black "Sailer, Mike"]
[WhiteFideId "4128206"]
[BlackFideId "2012901"]
[WhiteElo "2421"]
[BlackElo "2109"]
[Result "1-0"]
[Round "03"]
[TimeControl "180+2"]
[Date "2023.02.07"]
[WhiteClock "0:00:40"]
[BlackClock "0:00:01"]

1. e4 {[%clk 0:03:00]}  d5 {[%clk 0:02:58]} 2. exd5 {[%clk 0:03:00]}  Qxd5 {[%clk 0:02:58]} 3. Nc3 {[%clk 0:03:00]}  Qd6 {[%clk 0:02:58]} 4. d4 {[%clk 0:02:58]}  Nf6 {[%clk 0:02:58]} 5. Nf3 {[%clk 0:02:57]}  c6 {[%clk 0:02:59]} 6. Bd3 {[%clk 0:02:57]}  Bg4 {[%clk 0:02:59]} 7. h3 {[%clk 0:02:48]}  Bh5 {[%clk 0:02:57]} 8. Be3 {[%clk 0:02:41]}  e6 {[%clk 0:02:58]} 9. Qe2 {[%clk 0:02:41]}  Nbd7 {[%clk 0:02:57]} 10. O-O-O {[%clk 0:02:39]}  Nb6 {[%clk 0:02:58]} 11. g4 {[%clk 0:02:34]}  Bg6 {[%clk 0:02:58]} 12. Ne5 {[%clk 0:02:34]}  Bxd3 {[%clk 0:02:52]} 13. Qxd3 {[%clk 0:02:20]}  Nbd5 {[%clk 0:02:51]} 14. Rhe1 {[%clk 0:02:05]}  Nxc3 {[%clk 0:02:51]} 15. Qxc3 {[%clk 0:02:03]}  Nd5 {[%clk 0:02:51]} 16. Qb3 {[%clk 0:02:01]}  Qc7 {[%clk 0:02:33]} 17. Bd2 {[%clk 0:01:55]}  O-O-O {[%clk 0:01:32]} 18. c4 {[%clk 0:01:54]}  Nf6 {[%clk 0:01:27]} 19. Bf4 {[%clk 0:01:44]}  Bd6 {[%clk 0:01:25]} 20. c5 {[%clk 0:01:44]}  Bxe5 {[%clk 0:01:23]} 21. Bxe5 {[%clk 0:01:44]}  Qe7 {[%clk 0:01:22]} 22. Qa4 {[%clk 0:01:27]}  a6 {[%clk 0:01:14]} 23. Qa5 {[%clk 0:01:25]}  Nd5 {[%clk 0:00:45]} 24. Kb1 {[%clk 0:01:22]}  f6 {[%clk 0:00:36]} 25. Bd6 {[%clk 0:01:20]}  Rxd6 {[%clk 0:00:37]} 26. cxd6 {[%clk 0:01:20]}  Qxd6 {[%clk 0:00:37]} 27. Qd2 {[%clk 0:01:16]}  h5 {[%clk 0:00:34]} 28. g5 {[%clk 0:01:13]}  Nf4 {[%clk 0:00:29]} 29. gxf6 {[%clk 0:01:09]}  gxf6 {[%clk 0:00:29]} 30. h4 {[%clk 0:01:07]}  Ng2 {[%clk 0:00:24]} 31. Re4 {[%clk 0:01:01]}  Rg8 {[%clk 0:00:22]} 32. Qe2 {[%clk 0:00:56]}  Re8 {[%clk 0:00:18]} 33. Qxh5 {[%clk 0:00:54]}  Re7 {[%clk 0:00:11]} 34. Qh8+ {[%clk 0:00:50]}  Kc7 {[%clk 0:00:12]} 35. Qxf6 {[%clk 0:00:50]}  Re8 {[%clk 0:00:04]} 36. h5 {[%clk 0:00:47]}  Kb6 {[%clk 0:00:01]} 37. h6 {[%clk 0:00:40]} 1-0


[Site "https://www.chess.com"]

[Event "Titled Tuesday Blitz February 07 Early 2023"]
[White "Kubicka, Anna"]
[Black "Tobares, Leandro"]
[WhiteFideId "1152254"]
[BlackFideId "106402"]
[WhiteElo "2240"]
[BlackElo "2189"]
[Result "1/2-1/2"]
[Round "03"]
[TimeControl "180+2"]
[Date "2023.02.07"]
[WhiteClock "0:00:18"]
[BlackClock "0:00:15"]

1. d4 {[%clk 0:03:00]}  Nf6 {[%clk 0:02:45]} 2. c4 {[%clk 0:03:00]}  e6 {[%clk 0:02:43]} 3. Nc3 {[%clk 0:03:00]}  c5 {[%clk 0:02:40]} 4. d5 {[%clk 0:02:59]}  exd5 {[%clk 0:02:39]} 5. cxd5 {[%clk 0:03:00]}  d6 {[%clk 0:02:39]} 6. Nf3 {[%clk 0:02:58]}  g6 {[%clk 0:02:39]} 7. Nd2 {[%clk 0:02:54]}  Bg7 {[%clk 0:02:39]} 8. Nc4 {[%clk 0:02:51]}  O-O {[%clk 0:02:38]} 9. Bf4 {[%clk 0:02:50]}  Ne8 {[%clk 0:02:37]} 10. e4 {[%clk 0:02:49]}  a6 {[%clk 0:02:36]} 11. a4 {[%clk 0:02:49]}  Qe7 {[%clk 0:02:35]} 12. Bd3 {[%clk 0:02:44]}  Nd7 {[%clk 0:02:35]} 13. O-O {[%clk 0:02:38]}  Rb8 {[%clk 0:02:34]} 14. a5 {[%clk 0:02:37]}  b5 {[%clk 0:02:30]} 15. axb6 {[%clk 0:02:37]}  Nxb6 {[%clk 0:02:30]} 16. Nxb6 {[%clk 0:02:37]}  Rxb6 {[%clk 0:02:29]} 17. Qe2 {[%clk 0:02:31]}  Nf6 {[%clk 0:02:14]} 18. Rfe1 {[%clk 0:02:23]}  Nd7 {[%clk 0:02:12]} 19. Bxa6 {[%clk 0:02:19]}  Bxa6 {[%clk 0:02:10]} 20. Rxa6 {[%clk 0:02:19]}  Rfb8 {[%clk 0:02:04]} 21. Rxb6 {[%clk 0:02:18]}  Rxb6 {[%clk 0:02:04]} 22. Ra1 {[%clk 0:02:14]}  h6 {[%clk 0:02:01]} 23. h3 {[%clk 0:02:13]}  Ne5 {[%clk 0:01:59]} 24. Ra6 {[%clk 0:02:00]}  Rb4 {[%clk 0:01:54]} 25. Nb5 {[%clk 0:01:45]}  Nc4 {[%clk 0:01:33]} 26. Nxd6 {[%clk 0:01:35]}  Nxd6 {[%clk 0:01:28]} 27. Bxd6 {[%clk 0:01:36]}  Qxe4 {[%clk 0:01:28]} 28. Qxe4 {[%clk 0:01:36]}  Rxe4 {[%clk 0:01:27]} 29. Bxc5 {[%clk 0:01:34]}  Re5 {[%clk 0:01:21]} 30. Ra8+ {[%clk 0:01:28]}  Kh7 {[%clk 0:01:20]} 31. Rd8 {[%clk 0:01:28]}  Re1+ {[%clk 0:01:16]} 32. Kh2 {[%clk 0:01:27]}  Bxb2 {[%clk 0:01:15]} 33. g3 {[%clk 0:01:23]}  Rd1 {[%clk 0:01:12]} 34. Kg2 {[%clk 0:01:23]}  Bd4 {[%clk 0:01:08]} 35. Bxd4 {[%clk 0:01:19]}  Rxd4 {[%clk 0:01:08]} 36. d6 {[%clk 0:01:19]}  Kg7 {[%clk 0:01:07]} 37. d7 {[%clk 0:01:19]}  Kf6 {[%clk 0:01:06]} 38. Kf3 {[%clk 0:01:08]}  h5 {[%clk 0:01:02]} 39. Ke3 {[%clk 0:01:09]}  Rd6 {[%clk 0:00:59]} 40. Ke4 {[%clk 0:01:04]}  Ke7 {[%clk 0:00:56]} 41. Re8+ {[%clk 0:00:58]}  Kxd7 {[%clk 0:00:55]} 42. Re5 {[%clk 0:00:58]}  Re6 {[%clk 0:00:54]} 43. Kf4 {[%clk 0:00:57]}  f6 {[%clk 0:00:51]} 44. Ra5 {[%clk 0:00:46]}  Rc6 {[%clk 0:00:37]} 45. Ra7+ {[%clk 0:00:34]}  Ke6 {[%clk 0:00:37]} 46. h4 {[%clk 0:00:31]}  Rc4+ {[%clk 0:00:35]} 47. Kf3 {[%clk 0:00:31]}  Rc3+ {[%clk 0:00:34]} 48. Kg2 {[%clk 0:00:31]}  Rd3 {[%clk 0:00:31]} 49. Rg7 {[%clk 0:00:30]}  Kf5 {[%clk 0:00:30]} 50. Kf1 {[%clk 0:00:28]}  Rb3 {[%clk 0:00:29]} 51. Rg8 {[%clk 0:00:26]}  Ra3 {[%clk 0:00:28]} 52. Kg2 {[%clk 0:00:24]}  Rb3 {[%clk 0:00:28]} 53. Ra8 {[%clk 0:00:25]}  Rc3 {[%clk 0:00:27]} 54. Ra5+ {[%clk 0:00:25]}  Ke6 {[%clk 0:00:26]} 55. Ra4 {[%clk 0:00:25]}  Kf5 {[%clk 0:00:25]} 56. Rf4+ {[%clk 0:00:25]}  Ke5 {[%clk 0:00:25]} 57. Kf1 {[%clk 0:00:22]}  Rb3 {[%clk 0:00:24]} 58. Rc4 {[%clk 0:00:22]}  Ra3 {[%clk 0:00:23]} 59. Rc2 {[%clk 0:00:21]}  Rb3 {[%clk 0:00:22]} 60. Ke2 {[%clk 0:00:21]}  Ra3 {[%clk 0:00:22]} 61. Rd2 {[%clk 0:00:21]}  Rb3 {[%clk 0:00:22]} 62. Ra2 {[%clk 0:00:21]}  Rc3 {[%clk 0:00:22]} 63. Ra5+ {[%clk 0:00:21]}  Ke6 {[%clk 0:00:22]} 64. f3 {[%clk 0:00:18]}  Rb3 {[%clk 0:00:21]} 65. Kf2 {[%clk 0:00:18]}  Rc3 {[%clk 0:00:21]} 66. Kg2 {[%clk 0:00:17]}  Rb3 {[%clk 0:00:21]} 67. g4 {[%clk 0:00:17]}  hxg4 {[%clk 0:00:20]} 68. fxg4 {[%clk 0:00:18]}  Rb4 {[%clk 0:00:19]} 69. Kf3 {[%clk 0:00:17]}  Rb3+ {[%clk 0:00:19]} 70. Kf2 {[%clk 0:00:18]}  Rb2+ {[%clk 0:00:19]} 71. Ke3 {[%clk 0:00:18]}  Rh2 {[%clk 0:00:18]} 72. h5 {[%clk 0:00:17]}  gxh5 {[%clk 0:00:17]} 73. Rxh5 {[%clk 0:00:16]}  Rxh5 {[%clk 0:00:15]} 74. gxh5 {[%clk 0:00:16]}  Kf7 {[%clk 0:00:15]} 75. Kf4 {[%clk 0:00:16]}  Kg7 {[%clk 0:00:15]} 76. Kf5 {[%clk 0:00:17]}  Kh6 {[%clk 0:00:15]} 77. Kxf6 {[%clk 0:00:18]}  Kxh5 {[%clk 0:00:15]} 1/2-1/2


[Site "https://www.chess.com"]

[Event "Titled Tuesday Blitz February 07 Early 2023"]
[White "Simonovic, Miroslav"]
[Black "Moksh Amit Doshi"]
[WhiteFideId "919152"]
[BlackFideId "25064967"]
[WhiteElo "2082"]
[BlackElo "2401"]
[Result "1/2-1/2"]
[Round "03"]
[TimeControl "180+2"]
[Date "2023.02.07"]
[WhiteClock "0:00:08"]
[BlackClock "0:01:14"]

1. d4 {[%clk 0:02:59]}  Nf6 {[%clk 0:02:54]} 2. Bg5 {[%clk 0:02:59]}  d5 {[%clk 0:02:52]} 3. Bxf6 {[%clk 0:02:59]}  exf6 {[%clk 0:02:51]} 4. e3 {[%clk 0:03:00]}  Bd6 {[%clk 0:02:51]} 5. c4 {[%clk 0:02:56]}  dxc4 {[%clk 0:02:49]} 6. Bxc4 {[%clk 0:02:57]}  Nd7 {[%clk 0:02:46]} 7. Nc3 {[%clk 0:02:57]}  c6 {[%clk 0:02:45]} 8. g3 {[%clk 0:02:53]}  f5 {[%clk 0:02:43]} 9. Nge2 {[%clk 0:02:48]}  Nf6 {[%clk 0:02:41]} 10. O-O {[%clk 0:02:47]}  O-O {[%clk 0:02:40]} 11. a3 {[%clk 0:02:46]}  Qe7 {[%clk 0:02:39]} 12. b4 {[%clk 0:02:31]}  a5 {[%clk 0:02:37]} 13. Na4 {[%clk 0:01:57]}  axb4 {[%clk 0:02:34]} 14. Nb6 {[%clk 0:01:57]}  Rxa3 {[%clk 0:02:33]} 15. Nxc8 {[%clk 0:01:51]}  Rxc8 {[%clk 0:02:32]} 16. Rxa3 {[%clk 0:01:51]}  bxa3 {[%clk 0:02:33]} 17. Qb3 {[%clk 0:01:51]}  b5 {[%clk 0:02:28]} 18. Bd3 {[%clk 0:01:52]}  Qe6 {[%clk 0:02:25]} 19. Qc2 {[%clk 0:01:47]}  g6 {[%clk 0:02:23]} 20. Rc1 {[%clk 0:01:44]}  Rc7 {[%clk 0:02:11]} 21. Nc3 {[%clk 0:01:43]}  Nd5 {[%clk 0:02:09]} 22. Na2 {[%clk 0:01:24]}  c5 {[%clk 0:02:04]} 23. dxc5 {[%clk 0:01:08]}  Rxc5 {[%clk 0:02:03]} 24. Qb3 {[%clk 0:01:08]}  Rxc1+ {[%clk 0:01:57]} 25. Nxc1 {[%clk 0:01:09]}  Nb4 {[%clk 0:01:55]} 26. Qxe6 {[%clk 0:01:07]}  fxe6 {[%clk 0:01:54]} 27. Bxb5 {[%clk 0:01:07]}  a2 {[%clk 0:01:53]} 28. Nxa2 {[%clk 0:01:07]}  Nxa2 {[%clk 0:01:54]} 29. Bc4 {[%clk 0:01:08]}  Nb4 {[%clk 0:01:53]} 30. Bxe6+ {[%clk 0:01:08]}  Kg7 {[%clk 0:01:54]} 31. h4 {[%clk 0:01:04]}  Kf6 {[%clk 0:01:54]} 32. Bg8 {[%clk 0:01:04]}  h6 {[%clk 0:01:54]} 33. Kg2 {[%clk 0:01:04]}  Nd3 {[%clk 0:01:53]} 34. Bc4 {[%clk 0:01:00]}  Ne5 {[%clk 0:01:52]} 35. Be2 {[%clk 0:01:00]}  Bb4 {[%clk 0:01:53]} 36. f3 {[%clk 0:00:57]}  Bd2 {[%clk 0:01:51]} 37. e4 {[%clk 0:00:57]}  f4 {[%clk 0:01:50]} 38. gxf4 {[%clk 0:00:54]}  Bxf4 {[%clk 0:01:50]} 39. Bb5 {[%clk 0:00:46]}  h5 {[%clk 0:01:48]} 40. Be8 {[%clk 0:00:44]}  Nd3 {[%clk 0:01:46]} 41. Bb5 {[%clk 0:00:32]}  Nc5 {[%clk 0:01:45]} 42. Be8 {[%clk 0:00:32]}  Ne6 {[%clk 0:01:43]} 43. Kh3 {[%clk 0:00:20]}  Be5 {[%clk 0:01:41]} 44. Kg2 {[%clk 0:00:17]}  Nf4+ {[%clk 0:01:42]} 45. Kf2 {[%clk 0:00:18]}  Bd4+ {[%clk 0:01:41]} 46. Kg3 {[%clk 0:00:17]}  Ke5 {[%clk 0:01:37]} 47. Bf7 {[%clk 0:00:14]}  Be3 {[%clk 0:01:36]} 48. Be8 {[%clk 0:00:11]}  Kd4 {[%clk 0:01:36]} 49. Bf7 {[%clk 0:00:10]}  Ke5 {[%clk 0:01:32]} 50. Be8 {[%clk 0:00:10]}  Kf6 {[%clk 0:01:33]} 51. Bb5 {[%clk 0:00:08]}  g5 {[%clk 0:01:31]} 52. hxg5+ {[%clk 0:00:08]}  Kxg5 {[%clk 0:01:32]} 53. Be8 {[%clk 0:00:08]}  h4+ {[%clk 0:01:32]} 54. Kh2 {[%clk 0:00:08]}  Bf2 {[%clk 0:01:33]} 55. Bf7 {[%clk 0:00:08]}  Bg3+ {[%clk 0:01:34]} 56. Kh1 {[%clk 0:00:08]}  h3 {[%clk 0:01:31]} 57. Bc4 {[%clk 0:00:08]}  Kh4 {[%clk 0:01:30]} 58. Bf1 {[%clk 0:00:08]}  Bf2 {[%clk 0:01:28]} 59. e5 {[%clk 0:00:06]}  Kg3 {[%clk 0:01:28]} 60. Bxh3 {[%clk 0:00:06]}  Kxh3 {[%clk 0:01:25]} 61. e6 {[%clk 0:00:05]}  Bc5 {[%clk 0:01:26]} 62. e7 {[%clk 0:00:04]}  Bxe7 {[%clk 0:01:26]} 63. Kg1 {[%clk 0:00:05]}  Kg3 {[%clk 0:01:27]} 64. Kf1 {[%clk 0:00:05]}  Kxf3 {[%clk 0:01:28]} 65. Kg1 {[%clk 0:00:06]}  Ne2+ {[%clk 0:01:27]} 66. Kh1 {[%clk 0:00:06]}  Kf2 {[%clk 0:01:26]} 67. Kh2 {[%clk 0:00:06]}  Ng3 {[%clk 0:01:26]} 68. Kh3 {[%clk 0:00:07]}  Kf3 {[%clk 0:01:25]} 69. Kh2 {[%clk 0:00:07]}  Bc5 {[%clk 0:01:25]} 70. Kh3 {[%clk 0:00:08]}  Bg1 {[%clk 0:01:26]} 71. Kh4 {[%clk 0:00:08]}  Ne4 {[%clk 0:01:27]} 72. Kh3 {[%clk 0:00:08]}  Ng3 {[%clk 0:01:22]} 73. Kh4 {[%clk 0:00:08]}  Kf4 {[%clk 0:01:23]} 74. Kh3 {[%clk 0:00:08]}  Kf3 {[%clk 0:01:14]} 1/2-1/2


[Site "https://www.chess.com"]

[Event "Titled Tuesday Blitz February 07 Early 2023"]
[White "Osiecki, Stanislaw"]
[Black "Ilkhomi, Jaloliddin"]
[WhiteFideId "1102990"]
[BlackFideId "14700948"]
[WhiteElo "2055"]
[BlackElo "1997"]
[Result "0-1"]
[Round "03"]
[TimeControl "180+2"]
[Date "2023.02.07"]
[WhiteClock "0:00:01"]
[BlackClock "0:00:11"]

1. e4 {[%clk 0:02:53]}  c5 {[%clk 0:02:52]} 2. c3 {[%clk 0:02:50]}  d5 {[%clk 0:02:45]} 3. e5 {[%clk 0:02:49]}  e6 {[%clk 0:02:44]} 4. d4 {[%clk 0:02:49]}  Qb6 {[%clk 0:02:44]} 5. Nf3 {[%clk 0:02:50]}  Nc6 {[%clk 0:02:42]} 6. Bd3 {[%clk 0:02:49]}  Bd7 {[%clk 0:02:39]} 7. dxc5 {[%clk 0:02:49]}  Bxc5 {[%clk 0:02:38]} 8. O-O {[%clk 0:02:50]}  a5 {[%clk 0:02:32]} 9. Nbd2 {[%clk 0:02:49]}  Nh6 {[%clk 0:02:28]} 10. Nb3 {[%clk 0:02:48]}  Be7 {[%clk 0:02:28]} 11. Bxh6 {[%clk 0:02:47]}  gxh6 {[%clk 0:02:28]} 12. Qd2 {[%clk 0:02:47]}  O-O-O {[%clk 0:02:25]} 13. Nbd4 {[%clk 0:02:33]}  Nxd4 {[%clk 0:02:22]} 14. cxd4 {[%clk 0:02:21]}  Rdg8 {[%clk 0:02:17]} 15. Qxh6 {[%clk 0:02:04]}  Bb5 {[%clk 0:02:08]} 16. Qe3 {[%clk 0:02:00]}  Bxd3 {[%clk 0:02:06]} 17. Qxd3 {[%clk 0:02:00]}  Rg4 {[%clk 0:02:04]} 18. h3 {[%clk 0:01:48]}  Rg6 {[%clk 0:02:00]} 19. b3 {[%clk 0:01:47]}  Rhg8 {[%clk 0:01:59]} 20. g3 {[%clk 0:01:47]}  h5 {[%clk 0:01:23]} 21. h4 {[%clk 0:01:42]}  Rg4 {[%clk 0:01:22]} 22. Kh2 {[%clk 0:01:40]}  Qd8 {[%clk 0:00:38]} 23. Rac1+ {[%clk 0:01:22]}  Kb8 {[%clk 0:00:38]} 24. Rg1 {[%clk 0:01:04]}  f6 {[%clk 0:00:19]} 25. exf6 {[%clk 0:01:00]}  Bxf6 {[%clk 0:00:19]} 26. Ne5 {[%clk 0:00:19]}  Bxe5 {[%clk 0:00:17]} 27. dxe5 {[%clk 0:00:19]}  Qf8 {[%clk 0:00:14]} 28. f4 {[%clk 0:00:17]}  Qe7 {[%clk 0:00:14]} 29. Rc3 {[%clk 0:00:15]}  Qg7 {[%clk 0:00:08]} 30. Qf3 {[%clk 0:00:12]}  Rxh4+ {[%clk 0:00:08]} 31. Kg2 {[%clk 0:00:12]}  Rg4 {[%clk 0:00:08]} 32. Kf2 {[%clk 0:00:12]}  h4 {[%clk 0:00:08]} 33. Qe2 {[%clk 0:00:08]}  hxg3+ {[%clk 0:00:08]} 34. Ke1 {[%clk 0:00:06]}  g2 {[%clk 0:00:08]} 35. Rh3 {[%clk 0:00:05]}  Qg6 {[%clk 0:00:07]} 36. Qf2 {[%clk 0:00:02]}  Qb1+ {[%clk 0:00:07]} 37. Ke2 {[%clk 0:00:01]}  Qc2+ {[%clk 0:00:08]} 38. Ke1 {[%clk 0:00:01]}  Qb1+ {[%clk 0:00:09]} 39. Ke2 {[%clk 0:00:01]}  Qxa2+ {[%clk 0:00:09]} 40. Ke1 {[%clk 0:00:01]}  Qxf2+ {[%clk 0:00:10]} 41. Kxf2 {[%clk 0:00:01]}  Rxf4+ {[%clk 0:00:11]} 0-1


[Site "https://www.chess.com"]

[Event "Titled Tuesday Blitz February 07 Early 2023"]
[White "Svane, Frederik"]
[Black "Fernandez, Michael"]
[WhiteFideId "12923044"]
[BlackFideId "5803560"]
[WhiteElo "2600"]
[BlackElo "2181"]
[Result "1-0"]
[Round "03"]
[TimeControl "180+2"]
[Date "2023.02.07"]
[WhiteClock "0:00:14"]
[BlackClock "0:00:01"]

1. Nf3 {[%clk 0:02:44]}  Nf6 {[%clk 0:02:57]} 2. g3 {[%clk 0:02:42]}  d5 {[%clk 0:02:55]} 3. Bg2 {[%clk 0:02:42]}  Bf5 {[%clk 0:02:54]} 4. O-O {[%clk 0:02:40]}  c6 {[%clk 0:02:52]} 5. c4 {[%clk 0:02:38]}  e6 {[%clk 0:02:50]} 6. Qb3 {[%clk 0:02:20]}  Qb6 {[%clk 0:02:49]} 7. d3 {[%clk 0:02:20]}  Nbd7 {[%clk 0:02:43]} 8. cxd5 {[%clk 0:01:59]}  cxd5 {[%clk 0:02:35]} 9. Be3 {[%clk 0:01:55]}  Qxb3 {[%clk 0:02:10]} 10. axb3 {[%clk 0:01:56]}  Bc5 {[%clk 0:02:09]} 11. Bxc5 {[%clk 0:01:52]}  Nxc5 {[%clk 0:02:09]} 12. b4 {[%clk 0:01:53]}  Ncd7 {[%clk 0:01:58]} 13. Rc1 {[%clk 0:01:53]}  Ke7 {[%clk 0:01:19]} 14. Nd4 {[%clk 0:01:53]}  Bg6 {[%clk 0:01:06]} 15. Nd2 {[%clk 0:01:38]}  a6 {[%clk 0:01:04]} 16. Rc7 {[%clk 0:01:36]}  Rab8 {[%clk 0:00:54]} 17. Rac1 {[%clk 0:01:34]}  Ne8 {[%clk 0:00:53]} 18. R7c3 {[%clk 0:01:23]}  Nd6 {[%clk 0:00:52]} 19. N2b3 {[%clk 0:01:24]}  Rhc8 {[%clk 0:00:36]} 20. Na5 {[%clk 0:01:24]}  Kd8 {[%clk 0:00:27]} 21. f4 {[%clk 0:01:15]}  Nb6 {[%clk 0:00:16]} 22. b3 {[%clk 0:01:03]}  Rxc3 {[%clk 0:00:14]} 23. Rxc3 {[%clk 0:01:04]}  Rc8 {[%clk 0:00:14]} 24. Rxc8+ {[%clk 0:01:02]}  Kxc8 {[%clk 0:00:14]} 25. Kf2 {[%clk 0:01:00]}  Nf5 {[%clk 0:00:12]} 26. Nf3 {[%clk 0:00:51]}  f6 {[%clk 0:00:11]} 27. Bh3 {[%clk 0:00:36]}  Nd7 {[%clk 0:00:06]} 28. g4 {[%clk 0:00:29]}  Ne7 {[%clk 0:00:04]} 29. Nd4 {[%clk 0:00:18]}  b6 {[%clk 0:00:04]} 30. Nac6 {[%clk 0:00:17]}  Nxc6 {[%clk 0:00:04]} 31. Nxc6 {[%clk 0:00:17]}  Kc7 {[%clk 0:00:04]} 32. Nd4 {[%clk 0:00:18]}  e5 {[%clk 0:00:04]} 33. fxe5 {[%clk 0:00:16]}  fxe5 {[%clk 0:00:05]} 34. Ne6+ {[%clk 0:00:17]}  Kd6 {[%clk 0:00:04]} 35. Nxg7 {[%clk 0:00:17]}  Nf6 {[%clk 0:00:03]} 36. g5 {[%clk 0:00:16]}  Nd7 {[%clk 0:00:01]} 37. Bf5 {[%clk 0:00:15]}  Nf8 {[%clk 0:00:01]} 38. h4 {[%clk 0:00:14]} 1-0


[Site "https://www.chess.com"]

[Event "Titled Tuesday Blitz February 07 Early 2023"]
[White "Skliarov, Viktor"]
[Black "Mushini Ajay"]
[WhiteFideId "14106736"]
[BlackFideId "35066188"]
[WhiteElo "2383"]
[BlackElo "2310"]
[Result "1-0"]
[Round "03"]
[TimeControl "180+2"]
[Date "2023.02.07"]
[WhiteClock "0:00:13"]
[BlackClock "0:00:12"]

1. e4 {[%clk 0:03:00]}  c5 {[%clk 0:02:55]} 2. Nf3 {[%clk 0:03:01]}  e6 {[%clk 0:02:52]} 3. c3 {[%clk 0:03:01]}  d5 {[%clk 0:02:52]} 4. e5 {[%clk 0:03:01]}  Nc6 {[%clk 0:02:52]} 5. d4 {[%clk 0:03:01]}  Qb6 {[%clk 0:02:53]} 6. a3 {[%clk 0:03:02]}  c4 {[%clk 0:02:52]} 7. Nbd2 {[%clk 0:03:01]}  Na5 {[%clk 0:02:50]} 8. g3 {[%clk 0:03:00]}  Bd7 {[%clk 0:02:47]} 9. h4 {[%clk 0:02:57]}  Ne7 {[%clk 0:02:46]} 10. Bh3 {[%clk 0:02:56]}  Nf5 {[%clk 0:02:46]} 11. g4 {[%clk 0:02:46]}  Ne7 {[%clk 0:02:46]} 12. h5 {[%clk 0:02:46]}  h6 {[%clk 0:02:45]} 13. O-O {[%clk 0:02:44]}  O-O-O {[%clk 0:02:44]} 14. Kh2 {[%clk 0:02:38]}  g6 {[%clk 0:02:40]} 15. Qe2 {[%clk 0:02:37]}  gxh5 {[%clk 0:02:40]} 16. gxh5 {[%clk 0:02:37]}  Nf5 {[%clk 0:02:40]} 17. Rg1 {[%clk 0:02:28]}  Be7 {[%clk 0:02:31]} 18. Nf1 {[%clk 0:02:10]}  Nb3 {[%clk 0:02:27]} 19. Rb1 {[%clk 0:02:10]}  Nxc1 {[%clk 0:02:05]} 20. Rxc1 {[%clk 0:02:10]}  Rdg8 {[%clk 0:02:05]} 21. Ne3 {[%clk 0:02:06]}  Nh4 {[%clk 0:01:53]} 22. Nxh4 {[%clk 0:01:55]}  Bxh4 {[%clk 0:01:54]} 23. f4 {[%clk 0:01:56]}  f6 {[%clk 0:01:32]} 24. Ng4 {[%clk 0:01:31]}  f5 {[%clk 0:01:23]} 25. Nf6 {[%clk 0:01:31]}  Bxf6 {[%clk 0:01:15]} 26. exf6 {[%clk 0:01:32]}  Qd6 {[%clk 0:01:14]} 27. Qe5 {[%clk 0:01:29]}  Qxe5 {[%clk 0:01:14]} 28. dxe5 {[%clk 0:01:21]}  Be8 {[%clk 0:01:08]} 29. Bxf5 {[%clk 0:00:29]}  exf5 {[%clk 0:01:01]} 30. Rxg8 {[%clk 0:00:29]}  Rxg8 {[%clk 0:01:00]} 31. e6 {[%clk 0:00:29]}  Rf8 {[%clk 0:00:38]} 32. f7 {[%clk 0:00:26]}  Bxf7 {[%clk 0:00:38]} 33. exf7 {[%clk 0:00:26]}  Rxf7 {[%clk 0:00:39]} 34. Rg1 {[%clk 0:00:22]}  Re7 {[%clk 0:00:36]} 35. Rg6 {[%clk 0:00:22]}  Re2+ {[%clk 0:00:36]} 36. Kg3 {[%clk 0:00:22]}  Rxb2 {[%clk 0:00:36]} 37. Rxh6 {[%clk 0:00:23]}  Rb3 {[%clk 0:00:34]} 38. Rd6 {[%clk 0:00:20]}  Rxc3+ {[%clk 0:00:35]} 39. Kh4 {[%clk 0:00:20]}  Rd3 {[%clk 0:00:29]} 40. h6 {[%clk 0:00:20]}  Kc7 {[%clk 0:00:29]} 41. h7 {[%clk 0:00:18]}  Kxd6 {[%clk 0:00:29]} 42. h8=Q {[%clk 0:00:18]}  c3 {[%clk 0:00:26]} 43. Qe5+ {[%clk 0:00:17]}  Kc5 {[%clk 0:00:26]} 44. Qxf5 {[%clk 0:00:17]}  Kc4 {[%clk 0:00:25]} 45. Qc8+ {[%clk 0:00:17]}  Kd4 {[%clk 0:00:24]} 46. f5 {[%clk 0:00:15]}  Rd2 {[%clk 0:00:14]} 47. f6 {[%clk 0:00:15]}  Ke3 {[%clk 0:00:12]} 48. f7 {[%clk 0:00:14]}  Rd4+ {[%clk 0:00:12]} 49. Kg5 {[%clk 0:00:13]}  Rc4 {[%clk 0:00:12]} 50. Qxc4 {[%clk 0:00:11]}  dxc4 {[%clk 0:00:13]} 51. f8=Q {[%clk 0:00:12]}  c2 {[%clk 0:00:14]} 52. Qf4+ {[%clk 0:00:12]}  Kd3 {[%clk 0:00:14]} 53. Qc1 {[%clk 0:00:13]}  c3 {[%clk 0:00:13]} 54. Kf4 {[%clk 0:00:13]}  b6 {[%clk 0:00:13]} 55. Ke5 {[%clk 0:00:13]}  b5 {[%clk 0:00:12]} 56. Kd5 {[%clk 0:00:14]}  a5 {[%clk 0:00:12]} 57. Kc5 {[%clk 0:00:14]}  b4 {[%clk 0:00:12]} 58. axb4 {[%clk 0:00:13]}  axb4 {[%clk 0:00:13]} 59. Kxb4 {[%clk 0:00:13]}  Kd4 {[%clk 0:00:12]} 60. Qxc2 {[%clk 0:00:13]}  Ke3 {[%clk 0:00:12]} 61. Qxc3+ {[%clk 0:00:13]} 1-0


[Site "https://www.chess.com"]

[Event "Titled Tuesday Blitz February 07 Early 2023"]
[White "Andreev, Konstantin"]
[Black "Akobian, Varuzhan"]
[WhiteFideId "24239305"]
[BlackFideId "13300580"]
[WhiteElo "2195"]
[BlackElo "2591"]
[Result "0-1"]
[Round "03"]
[TimeControl "180+2"]
[Date "2023.02.07"]
[WhiteClock "0:01:49"]
[BlackClock "0:02:18"]

1. e4 {[%clk 0:03:00]}  d6 {[%clk 0:02:55]} 2. Nf3 {[%clk 0:03:01]}  Nf6 {[%clk 0:02:54]} 3. Nc3 {[%clk 0:03:00]}  Bg4 {[%clk 0:02:53]} 4. d4 {[%clk 0:02:59]}  c6 {[%clk 0:02:53]} 5. Be3 {[%clk 0:03:00]}  e6 {[%clk 0:02:52]} 6. h3 {[%clk 0:03:00]}  Bh5 {[%clk 0:02:52]} 7. Be2 {[%clk 0:03:00]}  d5 {[%clk 0:02:52]} 8. e5 {[%clk 0:02:59]}  Nfd7 {[%clk 0:02:52]} 9. Qd2 {[%clk 0:02:59]}  c5 {[%clk 0:02:52]} 10. dxc5 {[%clk 0:02:56]}  Nc6 {[%clk 0:02:51]} 11. g4 {[%clk 0:02:51]}  Bg6 {[%clk 0:02:51]} 12. Bb5 {[%clk 0:02:48]}  Qc7 {[%clk 0:02:49]} 13. O-O-O {[%clk 0:02:45]}  Bxc5 {[%clk 0:02:47]} 14. Bxc5 {[%clk 0:02:43]}  Nxc5 {[%clk 0:02:47]} 15. Qe3 {[%clk 0:02:44]}  Nd7 {[%clk 0:02:45]} 16. h4 {[%clk 0:02:43]}  h5 {[%clk 0:02:45]} 17. g5 {[%clk 0:02:35]}  O-O {[%clk 0:02:42]} 18. Bxc6 {[%clk 0:02:31]}  bxc6 {[%clk 0:02:41]} 19. Ne2 {[%clk 0:02:30]}  c5 {[%clk 0:02:39]} 20. Nf4 {[%clk 0:02:30]}  d4 {[%clk 0:02:37]} 21. Qe2 {[%clk 0:02:27]}  Rab8 {[%clk 0:02:31]} 22. Qc4 {[%clk 0:02:06]}  Be4 {[%clk 0:02:25]} 23. Rh3 {[%clk 0:02:04]}  Bxf3 {[%clk 0:02:24]} 24. Rxf3 {[%clk 0:01:56]}  Nxe5 {[%clk 0:02:24]} 25. Nxe6 {[%clk 0:01:57]}  Qb6 {[%clk 0:02:18]} 26. Nxf8 {[%clk 0:01:50]}  Qxb2+ {[%clk 0:02:17]} 27. Kd2 {[%clk 0:01:49]}  Nxc4+ {[%clk 0:02:18]} 0-1


[Site "https://www.chess.com"]